[Event "1st Turkish League 2017"]
[Site "Konya"]
[Date "2017.07.20"]
[Round "2"]
[White "Temel, Burcu Melis"]
[Black "Tandogan, Buket"]
[Result "1-0"]
[ECO "B30"]
[WhiteElo "1846"]
[BlackElo "1911"]
[Annotator "NA"]
[PlyCount "93"]
[EventType "team-tourn"]
[EventCountry "TUR"]
[SourceTitle "playchess.com"]
[Source "ChessBase"]
[SourceQuality "1"]
[TimeControl "5400+30"]

1. e4 {[%emt 0:00:30]} c5 {[%emt 0:01:00]} 2. Nf3 {[%emt 0:00:30]} e6 {[%emt 0:00:00]} 3. d3 {[%emt 0:00:00]} Nc6 {[%emt 0:00:00]} 4. g3 {[%emt 0:00:00]} Nf6 {[%emt 0:01:30]} 5. Bg2 {[%emt 0:00:30]} Be7 {[%emt 0:00:30]} 6. O-O {[%emt 0:00:00]} d6 {[%emt 0:00:30]} 7. Re1 {[%emt 0:02:00]} O-O {[%emt 0:00:30]} 8. Nbd2 {[%emt 0:04:30]} Qc7 {[%emt 0:02:30]} 9. Nf1 {[%emt 0:06:30] B30: Sicilian: 2...Nc6 3 Bb5, lines without ...g6} (9. c3 b6 10. a3 Ne5 11. Nxe5 dxe5 12. a4 Ba6 13. Nc4 Bxc4 14. dxc4 Rad8 15. Qc2 a5 16. Bf1 Ne8 17. Bd3 Qd7 {½-½ (31) Ivanchuk,V (2710)-Akopian,V (2648) Doha 2015}) 9... Rb8 {[%emt 0:09:30]} 10. e5 $146 {[%emt 0:25:30]} ({Predecessor:} 10. h4 b5 11. Ng5 h6 12. Nh3 d5 13. e5 Nd7 14. f4 Nb6 15. c3 b4 16. Qh5 bxc3 17. bxc3 {1-0 (56) Morgunov,M (2072)-Berger,H (2008) St Johann im Pongau 2016}) 10... Nd7 {[%emt 0:14:30]} (10... dxe5 $17 11. b3 Rd8) 11. exd6 {[%emt 0:01:30]} Bxd6 {[%emt 0:02:30]} 12. Ng5 {[%emt 0:04:30]} Nf6 {[%emt 0:02:30]} 13. Ne3 {[%emt 0:00:30]} Ne5 {[%emt 0:16:30]} (13... h6 $5 {[%cal Rh6g5]} 14. Ne4 Nxe4 15. Bxe4 b5 $11) 14. f4 {[%emt 0:32:38]} Ned7 {[%emt 0:01:30]} 15. Nc4 {[%emt 0:02:03]} h6 {[%emt 0:13:30]} 16. Ne4 {[%emt 0:06:30]} Nxe4 {[%emt 0:06:30]} 17. dxe4 {[%emt 0:00:02]} Be7 {[%emt 0:00:30]} 18. e5 {[%emt 0:02:01]} b5 {[%emt 0:03:30]} 19. Nd2 {[%emt 0:02:07]} Rd8 {[%emt 0:04:30]} 20. Qg4 {[%emt 0:01:04]} Qa5 {[%emt 0:06:40]} 21. c3 {[%emt 0:02:39]} c4 {[%emt 0:02:22]} 22. b4 {[%emt 0:01:43]} cxb3 {[%emt 0:01:04]} 23. Nxb3 {[%emt 0:00:02]} Qc7 {[%emt 0:04:46]} 24. Be3 {[%emt 0:02:32]} Nc5 {[%emt 0:00:36]} 25. Nd4 {[%emt 0:00:45]} Bd7 {[%emt 0:03:16]} 26. Rad1 {[%emt 0:01:16]} Qa5 {[%emt 0:00:53]} 27. Bc6 {[%emt 0:00:47]} Rbc8 {[%emt 0:01:12]} 28. Bxd7 {[%emt 0:00:10]} Rxd7 {[%emt 0:00:32]} 29. Nxe6 {[%emt 0:00:01]} Nxe6 {[%emt 0:01:23]} 30. Rxd7 {[%emt 0:00:02]} Qxc3 {[%emt 0:00:05]} 31. Qe2 {[%emt 0:00:43]} Qxe3+ {[%emt 0:00:38]} 32. Qxe3 {[%emt 0:00:09]} Bc5 {[%emt 0:00:30]} 33. Qxc5 {[%emt 0:00:30]} Rxc5 {[%emt 0:00:00]} 34. Re2 {[%emt 0:00:07]} a5 {[%emt 0:00:32]} 35. Red2 {[%emt 0:00:16]} b4 {[%emt 0:00:10]} 36. Rb7 {[%emt 0:00:23]} Rc1+ {[%emt 0:01:17]} 37. Kg2 {[%emt 0:00:22]} Nc5 $18 {[%emt 0:00:07]} (37... Rc8 $142 38. Ra7 Rc4 39. Rxa5 Kh7) 38. Rc7 {[%emt 0:02:58]} Rc3 {[%emt 0:00:26]} 39. Rd5 {[%emt 0:00:32]} Ne4 {[%emt 0:00:38]} 40. Rxc3 {[%emt 0:00:36]} bxc3 {[%emt 0:00:21]} 41. Rd8+ {[%emt 0:00:00]} Kh7 {[%emt 0:00:05]} 42. Rc8 {[%emt 0:00:00]} Kg6 {[%emt 0:00:53]} 43. Kf3 {[%emt 0:01:01]} Nd2+ {[%emt 0:00:30]} 44. Ke2 {[%emt 0:00:00]} Nb1 {[%emt 0:00:26]} 45. g4 {[%emt 0:00:00]} h5 {[%emt 0:00:38]} 46. h3 {[%emt 0:00:32]} hxg4 {[%emt 0:00:30]} 47. hxg4 {[%emt 0:00:00]} 1-0

[Event "1st Turkish League 2017"]
[Site "Konya"]
[Date "2017.07.20"]
[Round "2"]
[White "Ince, Safiye Oyku"]
[Black "Saim, Sida"]
[Result "1-0"]
[ECO "B50"]
[WhiteElo "1740"]
[BlackElo "1634"]
[Annotator "NA"]
[PlyCount "111"]
[EventType "team-tourn"]
[EventCountry "TUR"]
[SourceTitle "playchess.com"]
[Source "ChessBase"]
[SourceQuality "1"]
[TimeControl "5400+30"]

1. e4 {[%emt 0:00:30]} c5 {[%emt 0:01:00]} 2. Nf3 {[%emt 0:00:30]} d6 {[%emt 0:00:30]} 3. c3 {[%emt 0:00:30]} Nf6 {[%emt 0:00:30]} 4. Bc4 {[%emt 0:00:00]} e6 {[%emt 0:00:00]} 5. Qe2 {[%emt 0:00:00]} Be7 {[%emt 0:00:00]} 6. O-O {[%emt 0:00:00]} O-O {[%emt 0:00:30]} 7. Bb3 {[%emt 0:00:00]} h6 {[%emt 0:02:30]} 8. d3 {[%emt 0:00:00]} Nbd7 {[%emt 0:02:30]} 9. Ne1 {[%emt 0:03:00]} Qc7 {[%emt 0:06:30]} 10. f4 {[%emt 0:00:30]} Nb6 {[%emt 0:05:30]} 11. Rf3 {[%emt 0:03:30]} d5 {[%emt 0:03:30]} 12. e5 {[%emt 0:02:30]} Nh7 {[%emt 0:02:30]} 13. Rg3 {[%emt 0:05:30]} Kh8 {[%emt 0:11:30]} 14. Qh5 {[%emt 0:03:30]} Bd8 {[%emt 0:11:30]} 15. Nf3 {[%emt 0:05:30]} f5 {[%emt 0:03:30]} 16. exf6 {[%emt 0:02:30]} Bxf6 {[%emt 0:02:30]} 17. Nh4 {[%emt 0:03:30]} Bxh4 {[%emt 0:01:30]} 18. Qxh4 {[%emt 0:00:30]} Qd8 {[%emt 0:04:30]} 19. Qg4 {[%emt 0:03:30]} Qf6 {[%emt 0:01:30]} 20. Qe2 {[%emt 0:00:30]} Qf7 {[%emt 0:13:30]} 21. Be3 {[%emt 0:00:30]} Nd7 {[%emt 0:01:30]} 22. d4 {[%emt 0:01:30]} Nhf6 {[%emt 0:03:30]} 23. Bc2 {[%emt 0:00:30]} Nh5 {[%emt 0:01:30]} 24. Rf3 {[%emt 0:02:30]} cxd4 {[%emt 0:03:30]} 25. cxd4 {[%emt 0:01:30]} Ndf6 {[%emt 0:04:13]} 26. Bc1 {[%emt 0:04:30]} Bd7 {[%emt 0:01:16]} 27. Nc3 {[%emt 0:03:30]} g6 {[%emt 0:07:22]} 28. h3 {[%emt 0:01:30]} Ng7 {[%emt 0:00:52]} 29. Rg3 {[%emt 0:00:30]} Nf5 {[%emt 0:00:25]} 30. Rd3 {[%emt 0:00:30]} Nd6 {[%emt 0:01:14]} 31. Rf3 {[%emt 0:02:30]} Bc6 {[%emt 0:00:44]} 32. Qe5 {[%emt 0:00:30]} Nc4 {[%emt 0:00:30]} 33. Qe1 {[%emt 0:00:30]} Nd6 {[%emt 0:00:39]} 34. Qh4 {[%emt 0:00:30]} Kh7 {[%emt 0:01:29]} 35. f5 {[%emt 0:00:30]} exf5 {[%emt 0:02:52]} 36. Qxh6+ {[%emt 0:01:30]} Kg8 {[%emt 0:00:30]} 37. Rg3 {[%emt 0:00:00]} Be8 {[%emt 0:00:07]} 38. Bf4 {[%emt 0:01:00]} Nc8 {[%emt 0:00:57]} 39. Bxf5 {[%emt 0:00:30]} Ne7 {[%emt 0:00:00]} 40. Bc2 {[%emt 0:00:30]} Nh5 {[%emt 0:00:30]} 41. Qxh5 {[%emt 0:02:30]} Qxf4 {[%emt 0:00:04]} 42. Nxd5 {[%emt 0:00:30]} Qxg3 {[%emt 0:01:27]} 43. Nxe7+ {[%emt 0:00:30]} Kg7 {[%emt 0:00:01]} 44. Qe2 {[%emt 0:02:30]} Qd6 {[%emt 0:00:50]} 45. Qe4 {[%emt 0:00:30]} Rd8 {[%emt 0:00:38]} 46. d5 {[%emt 0:01:30]} Rf4 {[%emt 0:00:20]} 47. Qe3 {[%emt 0:01:30]} Bf7 {[%emt 0:00:33]} 48. Re1 {[%emt 0:02:30]} Rc4 {[%emt 0:00:28]} 49. Bxg6 {[%emt 0:01:30]} Bxg6 {[%emt 0:00:45]} 50. Nxg6 {[%emt 0:00:00]} Qxd5 {[%emt 0:00:33]} 51. Ne5 {[%emt 0:01:00]} Rc5 {[%emt 0:00:29]} 52. Qg5+ {[%emt 0:00:30]} Kf8 {[%emt 0:00:26]} 53. Rf1+ {[%emt 0:00:30]} Ke8 {[%emt 0:00:17]} 54. Qg6+ {[%emt 0:00:30]} Ke7 {[%emt 0:00:30]} 55. Qf6+ {[%emt 0:00:30]} Ke8 {[%emt 0:00:30]} 56. Qf8# {[%emt 0:00:00]} 1-0

[Event "1st Turkish League 2017"]
[Site "Konya"]
[Date "2017.07.20"]
[Round "2"]
[White "Sahin, Hayrun Nisa"]
[Black "Erece, Ece Alkim"]
[Result "1/2-1/2"]
[ECO "D94"]
[WhiteElo "1576"]
[BlackElo "1829"]
[Annotator "NA"]
[PlyCount "100"]
[EventType "team-tourn"]
[EventCountry "TUR"]
[SourceTitle "playchess.com"]
[Source "ChessBase"]
[SourceQuality "1"]
[TimeControl "5400+30"]

1. e4 {[%emt 0:00:30]} c5 {[%emt 0:01:00]} 2. Nf3 {[%emt 0:00:30]} g6 {[%emt 0:00:00]} 3. c3 {[%emt 0:00:30]} Bg7 {[%emt 0:00:00]} 4. d4 {[%emt 0:00:30]} cxd4 {[%emt 0:00:30]} 5. cxd4 {[%emt 0:00:00]} d5 {[%emt 0:00:30]} 6. exd5 {[%emt 0:01:00]} Nf6 {[%emt 0:00:30]} 7. Nc3 {[%emt 0:00:30]} Nxd5 {[%emt 0:00:00]} 8. Bc4 {[%emt 0:00:30]} Nb6 {[%emt 0:00:00]} 9. Bb3 {[%emt 0:02:30]} O-O {[%emt 0:00:30]} 10. O-O {[%emt 0:00:00]} Nc6 {[%emt 0:01:30]} 11. d5 {[%emt 0:03:00]} Na5 {[%emt 0:05:30]} 12. Re1 {[%emt 0:00:30]} Nxb3 {[%emt 0:07:30]} 13. axb3 {[%emt 0:04:30]} h6 {[%emt 0:03:30] D94: Grünfeld: 4 Nf3 Bg7 5 e3} (13... Bg4 14. h3 Bxf3 15. Qxf3 Re8 16. Bg5 Bxc3 17. bxc3 Qxd5 18. Qxd5 Nxd5 19. c4 f6 20. cxd5 fxg5 21. Rac1 {½-½ (33) Grachev,B (2683)-Goganov,A (2562) Ekaterinburg 2013}) 14. Bf4 $146 {[%emt 0:09:30]} ({Predecessor:} 14. h3 Qd6 15. Be3 Bf5 16. Qd2 g5 17. Nd4 Bd7 18. Ra5 a6 19. Nf3 g4 20. hxg4 Bxg4 21. Ne4 {½-½ (67) Savina,A (2387)-Balaian,A (2230) Sochi 2016}) 14... Bg4 {[%emt 0:06:30]} 15. h3 {[%emt 0:05:30]} Bxf3 {[%emt 0:01:30]} 16. Qxf3 {[%emt 0:00:30]} Nc8 {[%emt 0:18:30]} 17. g4 {[%emt 0:28:30]} Qb6 {[%emt 0:07:30]} 18. Na4 {[%emt 0:08:30]} (18. d6 $5 exd6 19. Nd5 $14) 18... Qb4 {[%emt 0:06:30]} 19. Re4 {[%emt 0:07:30]} Qb5 {[%emt 0:01:30]} 20. Rd1 {[%emt 0:00:30]} Rd8 {[%emt 0:01:30]} 21. Re3 {[%emt 0:03:30]} Rd7 {[%emt 0:04:30]} 22. Red3 {[%emt 0:07:09]} g5 {[%emt 0:10:30]} 23. Bg3 {[%emt 0:01:37]} Nb6 {[%emt 0:02:53]} 24. Nxb6 {[%emt 0:01:10]} Qxb6 {[%emt 0:00:23]} 25. R1d2 {[%emt 0:00:40]} Rad8 {[%emt 0:01:27]} 26. Qe3 {[%emt 0:01:43]} Bf8 {[%emt 0:05:47]} 27. Qxb6 {[%emt 0:02:34]} axb6 {[%emt 0:00:13]} 28. f4 {[%emt 0:03:07]} e6 {[%emt 0:01:46]} 29. fxg5 {[%emt 0:01:20]} hxg5 {[%emt 0:02:53]} 30. d6 {[%emt 0:00:55]} f6 {[%emt 0:00:31]} 31. Kg2 {[%emt 0:01:18]} b5 {[%emt 0:06:23]} (31... Kf7 $17) 32. h4 {[%emt 0:01:55]} Bh6 {[%emt 0:00:31]} ({Black should try} 32... gxh4 $11 33. Bxh4 Rxd6 34. Rxd6 Rxd6 35. Rxd6 Bxd6) 33. Rf2 {[%emt 0:00:28]} gxh4 {[%emt 0:02:19]} 34. Bxh4 {[%emt 0:01:14]} Bg7 {[%emt 0:01:28]} 35. Bxf6 {[%emt 0:00:56]} Bxf6 {[%emt 0:00:30]} 36. Rxf6 {[%emt 0:00:30]} Rxd6 {[%emt 0:00:00]} 37. Re3 {[%emt 0:01:23]} Rd2+ {[%emt 0:00:05]} 38. Kg3 $11 {[%emt 0:00:44]} R8d6 {[%emt 0:01:05]} 39. Rfxe6 {[%emt 0:01:09]} Rxe6 {[%emt 0:00:30]} 40. Rxe6 {[%emt 0:00:00]} Rd3+ {[%emt 0:01:15]} 41. Kh4 {[%emt 0:00:00]} Rxb3 {[%emt 0:00:04]} 42. Re2 {[%emt 0:00:59]} Kf7 {[%emt 0:00:30]} 43. Kg5 {[%emt 0:00:00]} b4 {[%emt 0:00:20]} 44. Rc2 {[%emt 0:00:30]} Ke6 {[%emt 0:00:38]} 45. Kg6 {[%emt 0:01:04]} b5 {[%emt 0:00:47]} 46. Rc5 {[%emt 0:01:23]} Rxb2 {[%emt 0:00:48]} 47. Rxb5 {[%emt 0:00:04]} b3 {[%emt 0:00:29]} 48. g5 {[%emt 0:00:02]} Kd6 {[%emt 0:00:41]} 49. Kg7 {[%emt 0:00:07]} Rg2 {[%emt 0:00:20]} 50. Rxb3 {[%emt 0:00:58]} Kd5 {[%emt 0:00:40]} 1/2-1/2

[Event "1st Turkish League 2017"]
[Site "Konya"]
[Date "2017.07.18"]
[Round "3"]
[White "Nechaeva, Marina"]
[Black "Zimina, Olga"]
[Result "1-0"]
[ECO "A43"]
[WhiteElo "2408"]
[BlackElo "2390"]
[Annotator "ChessBase"]
[PlyCount "69"]
[EventType "team-tourn"]
[EventCountry "TUR"]
[SourceTitle "playchess.com"]
[Source "ChessBase"]
[SourceQuality "1"]
[TimeControl "5400+30"]

1. d4 {[%emt 0:00:30]} g6 {[%emt 0:01:00]} 2. c4 {[%emt 0:00:00]} Bg7 {[%emt 0:00:00]} 3. e4 {[%emt 0:02:00]} c5 {[%emt 0:00:00]} 4. d5 {[%emt 0:00:30]} d6 {[%emt 0:00:30]} 5. Nc3 {[%emt 0:00:30]} e6 {[%emt 0:00:30]} 6. Bd3 {[%emt 0:00:00]} Ne7 {[%emt 0:00:00]} 7. h3 {[%emt 0:02:00]} O-O {[%emt 0:01:00]} 8. Nf3 {[%emt 0:00:00]} a6 {[%emt 0:00:00]} 9. a4 {[%emt 0:03:00]} exd5 {[%emt 0:01:00]} 10. cxd5 {[%emt 0:00:00]} h6 {[%emt 0:06:30]} 11. O-O {[%emt 0:00:00]} g5 {[%emt 0:00:30]} 12. Rb1 {[%emt 0:11:30]} Ng6 {[%emt 0:08:30]} 13. Ne2 {[%emt 0:02:30]} Nd7 {[%emt 0:08:30]} 14. b4 {[%emt 0:04:30]} b6 {[%emt 0:04:30]} 15. bxc5 {[%emt 0:13:30]} bxc5 {[%emt 0:01:30]} 16. Ng3 {[%emt 0:00:30]} Nde5 {[%emt 0:00:30]} 17. Nxe5 {[%emt 0:02:30]} Bxe5 {[%emt 0:07:30]} 18. Nf5 {[%emt 0:17:30]} Bg7 {[%emt 0:29:30]} 19. Nxg7 {[%emt 0:02:30]} Kxg7 {[%emt 0:00:30]} 20. Bd2 {[%emt 0:08:30]} f6 {[%emt 0:02:30]} 21. a5 {[%emt 0:02:30]} Rf7 {[%emt 0:00:30]} 22. Qe2 {[%emt 0:01:30]} Re7 {[%emt 0:01:30]} 23. Rb6 {[%emt 0:00:30]} Bb7 {[%emt 0:05:30]} 24. f4 {[%emt 0:04:30]} Qd7 {[%emt 0:02:35]} 25. e5 {[%emt 0:05:29]} fxe5 {[%emt 0:04:25]} 26. Bxg6 {[%emt 0:01:32]} Kxg6 {[%emt 0:00:27]} 27. fxe5 {[%emt 0:00:03]} Kg7 {[%emt 0:02:48]} 28. Bc3 {[%emt 0:01:32]} Kg8 {[%emt 0:00:22]} 29. Qe4 {[%emt 0:05:46]} Rf8 {[%emt 0:05:27]} 30. Rxf8+ {[%emt 0:00:26]} Kxf8 {[%emt 0:00:30]} 31. e6 {[%emt 0:00:00]} Qe8 {[%emt 0:01:18]} 32. Qf5+ {[%emt 0:00:30]} Kg8 {[%emt 0:00:30]} 33. Qf6 {[%emt 0:00:00]} Kh7 {[%emt 0:00:11]} 34. Rxd6 {[%emt 0:00:24]} Ba8 {[%emt 0:00:44]} 35. Qxe7+ {[%emt 0:00:10]} 1-0

[Event "1st Turkish League 2017"]
[Site "Konya"]
[Date "2017.07.18"]
[Round "3"]
[White "Koksal, Ege"]
[Black "Caglar, Ahmet Ata"]
[Result "1-0"]
[ECO "E63"]
[WhiteElo "2390"]
[BlackElo "2082"]
[Annotator "NA"]
[PlyCount "79"]
[EventType "team-tourn"]
[EventCountry "TUR"]
[SourceTitle "playchess.com"]
[Source "ChessBase"]
[SourceQuality "1"]
[TimeControl "5400+30"]

1. d4 {[%emt 0:00:30]} Nf6 {[%emt 0:01:00]} 2. Nf3 {[%emt 0:00:30]} g6 {[%emt 0:00:00]} 3. c4 {[%emt 0:00:30]} Bg7 {[%emt 0:00:00]} 4. g3 {[%emt 0:00:30]} O-O {[%emt 0:00:30]} 5. Bg2 {[%emt 0:00:00]} d6 {[%emt 0:00:30]} 6. O-O {[%emt 0:00:00]} Nc6 {[%emt 0:00:30]} 7. Nc3 {[%emt 0:00:00]} a6 {[%emt 0:00:00]} 8. Bf4 {[%emt 0:00:00]} Rb8 {[%emt 0:02:00]} 9. Rc1 {[%emt 0:00:30]} Bd7 {[%emt 0:11:30]} 10. Nd5 {[%emt 0:11:30]} b5 {[%emt 0:05:30]} 11. Nxf6+ {[%emt 0:02:30]} Bxf6 {[%emt 0:01:30]} 12. Qd2 {[%emt 0:02:30]} e5 {[%emt 0:12:30]} 13. dxe5 {[%emt 0:16:30]} dxe5 {[%emt 0:03:30]} 14. Bh6 {[%emt 0:18:30]} Re8 {[%emt 0:00:00]} 15. cxb5 {[%emt 0:03:30]} axb5 {[%emt 0:02:00]} 16. Rfd1 {[%emt 0:08:30]} Nd4 {[%emt 0:00:30]} 17. Nxd4 {[%emt 0:00:30]} exd4 {[%emt 0:00:30]} 18. Bf4 {[%emt 0:00:30]} Rc8 {[%emt 0:06:30]} 19. Bb7 {[%emt 0:06:30]} c5 {[%emt 0:00:30]} 20. b3 {[%emt 0:14:24]} Qb6 {[%emt 0:03:30]} 21. Bxc8 {[%emt 0:01:44]} Rxc8 {[%emt 0:00:30]} 22. Bg5 {[%emt 0:00:32]} Bg7 {[%emt 0:00:30]} 23. Bh6 {[%emt 0:01:53]} Bf6 {[%emt 0:00:30]} 24. Bg5 {[%emt 0:02:41]} Bg7 {[%emt 0:00:30]} 25. f3 {[%emt 0:01:42]} c4 {[%emt 0:02:30]} 26. Be3 {[%emt 0:00:36]} cxb3 {[%emt 0:05:30]} 27. Rxc8+ {[%emt 0:00:30]} Bxc8 {[%emt 0:00:30]} 28. axb3 {[%emt 0:00:20]} Qe6 {[%emt 0:04:30]} 29. Bxd4 {[%emt 0:01:17]} Bxd4+ {[%emt 0:00:00]} 30. Qxd4 {[%emt 0:00:00]} Qxe2 {[%emt 0:00:00]} 31. Qd3 {[%emt 0:00:10]} Qe6 {[%emt 0:00:30]} 32. Kf2 {[%emt 0:00:45]} Qh3 {[%emt 0:01:30]} 33. Qd8+ {[%emt 0:00:30]} Kg7 {[%emt 0:00:00]} 34. Qd4+ {[%emt 0:00:56]} Kg8 {[%emt 0:00:00]} 35. Qh4 {[%emt 0:01:21]} Qf5 {[%emt 0:02:30]} 36. Rd8+ {[%emt 0:00:16]} Kg7 {[%emt 0:00:30]} 37. Qd4+ {[%emt 0:00:04]} f6 {[%emt 0:00:00]} 38. Qa7+ {[%emt 0:00:38]} Kh6 {[%emt 0:00:00]} 39. Qe3+ {[%emt 0:01:40]} g5 {[%emt 0:01:30]} 40. h4 {[%emt 0:00:22]} 1-0

[Event "1st Turkish League 2017"]
[Site "Konya"]
[Date "2017.07.18"]
[Round "3"]
[White "Erturan, Yakup"]
[Black "Annaberdiyev, Babageldi"]
[Result "1-0"]
[ECO "A44"]
[WhiteElo "2371"]
[BlackElo "2262"]
[Annotator "NA"]
[PlyCount "89"]
[EventType "team-tourn"]
[EventCountry "TUR"]
[SourceTitle "playchess.com"]
[Source "ChessBase"]
[SourceQuality "1"]
[TimeControl "5400+30"]

1. d4 {[%emt 0:00:30]} c5 {[%emt 0:05:00]} 2. d5 {[%emt 0:02:30]} e5 {[%emt 0:00:30]} 3. c4 {[%emt 0:01:30]} d6 {[%emt 0:00:30]} 4. Nc3 {[%emt 0:00:30]} Be7 {[%emt 0:10:30]} 5. e4 {[%emt 0:04:30]} a6 {[%emt 0:02:30]} 6. Bd3 {[%emt 0:01:30]} Bg5 {[%emt 0:02:30]} 7. Nge2 {[%emt 0:04:30]} Bxc1 {[%emt 0:00:30]} 8. Qxc1 {[%emt 0:00:00]} Ne7 {[%emt 0:00:30]} 9. O-O {[%emt 0:02:00]} O-O {[%emt 0:01:30]} 10. Ng3 {[%emt 0:03:30]} Ng6 {[%emt 0:01:30]} 11. Qe3 {[%emt 0:04:30]} Nf4 {[%emt 0:03:30]} 12. Rfb1 {[%emt 0:04:30]} g6 {[%emt 0:00:30]} 13. Bf1 {[%emt 0:02:30]} Nd7 {[%emt 0:05:30]} 14. Nge2 {[%emt 0:00:30]} Nxe2+ {[%emt 0:02:30]} 15. Bxe2 {[%emt 0:00:30]} f5 {[%emt 0:01:30]} 16. exf5 {[%emt 0:00:30]} gxf5 {[%emt 0:00:30]} 17. f4 {[%emt 0:00:00]} Qf6 {[%emt 0:00:30]} 18. fxe5 {[%emt 0:03:00]} Nxe5 {[%emt 0:03:30]} 19. g3 {[%emt 0:08:30]} Bd7 {[%emt 0:00:30]} 20. Rf1 {[%emt 0:00:30]} Qg7 {[%emt 0:00:30]} 21. Rf2 {[%emt 0:01:30]} Rae8 {[%emt 0:00:30]} 22. Qd2 {[%emt 0:01:30]} Ng6 {[%emt 0:02:30]} 23. Kh1 {[%emt 0:07:30]} Re5 {[%emt 0:02:30]} 24. Raf1 {[%emt 0:01:30]} Rfe8 {[%emt 0:00:30]} 25. Bd3 {[%emt 0:01:30]} Rf8 {[%emt 0:09:30]} 26. Ne2 {[%emt 0:03:30]} b5 {[%emt 0:02:30]} 27. b3 {[%emt 0:00:30]} b4 {[%emt 0:01:30]} 28. Nf4 {[%emt 0:00:30]} Re7 {[%emt 0:11:30]} 29. Nxg6 {[%emt 0:13:30]} hxg6 {[%emt 0:00:30]} 30. g4 {[%emt 0:00:30]} Qd4 {[%emt 0:04:30]} 31. gxf5 {[%emt 0:03:30]} Bxf5 {[%emt 0:00:30]} 32. Bxf5 {[%emt 0:00:30]} Qxd2 {[%emt 0:00:30]} 33. Rxd2 {[%emt 0:00:30]} Rxf5 {[%emt 0:00:30]} 34. Rxf5 {[%emt 0:00:30]} gxf5 {[%emt 0:00:00]} 35. Kg2 {[%emt 0:00:30]} Re1 {[%emt 0:03:00]} 36. Kf2 {[%emt 0:02:30]} Ra1 {[%emt 0:00:30]} 37. Kf3 {[%emt 0:00:30]} Kf7 {[%emt 0:00:00]} 38. Re2 {[%emt 0:00:30]} Kg6 {[%emt 0:05:49]} 39. Re6+ {[%emt 0:03:08]} Kg5 {[%emt 0:01:35]} 40. Rxd6 {[%emt 0:01:00]} Rxa2 {[%emt 0:00:09]} 41. h4+ {[%emt 0:00:20]} Kxh4 {[%emt 0:00:35]} 42. Rc6 {[%emt 0:00:49]} Kg5 {[%emt 0:01:10]} 43. Rxc5 {[%emt 0:00:25]} Rb2 {[%emt 0:00:47]} 44. d6 {[%emt 0:00:18]} Rxb3+ {[%emt 0:00:13]} 45. Ke2 {[%emt 0:00:05]} 1-0

[Event "1st Turkish League 2017"]
[Site "Konya"]
[Date "2017.07.18"]
[Round "3"]
[White "Khukhashvili, Sopiko"]
[Black "Temel, Burcu Melis"]
[Result "1/2-1/2"]
[ECO "A30"]
[WhiteElo "2339"]
[BlackElo "1846"]
[Annotator "NA"]
[PlyCount "127"]
[EventType "team-tourn"]
[EventCountry "TUR"]
[SourceTitle "playchess.com"]
[Source "ChessBase"]
[SourceQuality "1"]
[TimeControl "5400+30"]

1. c4 {[%emt 0:00:30]} c5 {[%emt 0:03:00]} 2. Nf3 {[%emt 0:00:00]} Nc6 {[%emt 0:00:00]} 3. g3 {[%emt 0:01:00]} e6 {[%emt 0:01:00]} 4. Bg2 {[%emt 0:00:00]} Nge7 {[%emt 0:01:30]} 5. O-O {[%emt 0:02:00]} g6 {[%emt 0:01:30]} 6. d4 {[%emt 0:00:30]} cxd4 {[%emt 0:05:30]} 7. Nxd4 {[%emt 0:00:00]} Bg7 {[%emt 0:05:30]} 8. Nb5 {[%emt 0:00:00]} O-O {[%emt 0:01:30]} 9. Nd6 {[%emt 0:00:30]} Qb6 {[%emt 0:02:30]} 10. Nc3 {[%emt 0:00:30]} Nd4 {[%emt 0:06:30]} 11. Nce4 {[%emt 0:00:30]} Nef5 {[%emt 0:03:30]} 12. c5 {[%emt 0:01:30]} Qa6 {[%emt 0:01:30]} 13. e3 {[%emt 0:01:30]} Nxd6 {[%emt 0:05:30]} 14. Nxd6 {[%emt 0:00:30]} Nc6 {[%emt 0:01:30]} 15. a3 {[%emt 0:04:30]} b6 {[%emt 0:10:30]} 16. cxb6 {[%emt 0:00:00]} Qxb6 {[%emt 0:01:30]} 17. Rb1 {[%emt 0:01:00]} Ba6 {[%emt 0:04:30]} 18. Re1 {[%emt 0:00:30]} Ne5 {[%emt 0:01:30]} 19. Bf1 {[%emt 0:01:30]} Bxf1 {[%emt 0:04:30]} 20. Rxf1 {[%emt 0:00:30]} a5 {[%emt 0:05:30]} 21. e4 {[%emt 0:02:30]} Ra6 {[%emt 0:01:30]} 22. Be3 {[%emt 0:01:30]} Qxd6 {[%emt 0:00:30]} 23. Qxd6 {[%emt 0:00:30]} Rxd6 {[%emt 0:00:30]} 24. Bc5 {[%emt 0:00:00]} Rd2 {[%emt 0:01:30]} 25. Bxf8 {[%emt 0:00:00]} Kxf8 {[%emt 0:00:30]} 26. b4 {[%emt 0:00:30]} axb4 {[%emt 0:00:30]} 27. axb4 {[%emt 0:00:30]} Re2 {[%emt 0:01:30]} 28. Kg2 {[%emt 0:01:30]} Nc4 {[%emt 0:03:30]} 29. b5 {[%emt 0:05:30]} Bd4 {[%emt 0:01:30]} 30. Rb4 {[%emt 0:08:30]} Rc2 {[%emt 0:01:30]} 31. Kh3 {[%emt 0:04:30]} Bc5 {[%emt 0:01:30]} 32. Ra4 {[%emt 0:01:30]} Nb6 {[%emt 0:00:30]} 33. Ra6 {[%emt 0:02:30]} Rb2 {[%emt 0:00:30]} 34. f4 {[%emt 0:01:30]} d5 {[%emt 0:02:30]} 35. f5 {[%emt 0:07:30]} gxf5 {[%emt 0:01:30]} 36. exf5 {[%emt 0:00:30]} e5 {[%emt 0:04:42]} 37. f6 {[%emt 0:00:00]} Ke8 {[%emt 0:01:18]} 38. Ra7 {[%emt 0:03:00]} Nc4 {[%emt 0:05:40]} 39. Rb7 {[%emt 0:01:30]} Na5 {[%emt 0:06:19]} 40. Rb8+ {[%emt 0:06:30]} Kd7 {[%emt 0:00:06]} 41. Ra1 {[%emt 0:02:30]} Bd6 {[%emt 0:01:38]} 42. Ra8 {[%emt 0:01:30]} Nc4 {[%emt 0:00:24]} 43. Kg4 {[%emt 0:03:30]} h6 {[%emt 0:02:23]} 44. Rh8 {[%emt 0:04:30]} Rxb5 {[%emt 0:01:46]} 45. Rxh6 {[%emt 0:00:30]} Ke6 {[%emt 0:00:00]} 46. h4 {[%emt 0:02:30]} e4 {[%emt 0:00:12]} 47. h5 {[%emt 0:01:30]} Ne3+ {[%emt 0:00:24]} 48. Kh3 {[%emt 0:00:30]} Nf5 {[%emt 0:00:16]} 49. Rh8 {[%emt 0:00:30]} Rb3 {[%emt 0:00:27]} 50. Rg1 {[%emt 0:00:30]} Bxg3 {[%emt 0:00:40]} 51. h6 {[%emt 0:06:30]} Nxh6 {[%emt 0:00:36]} 52. Rxg3 {[%emt 0:00:30]} Rxg3+ {[%emt 0:00:01]} 53. Kxg3 {[%emt 0:00:30]} Nf5+ {[%emt 0:00:34]} 54. Kf4 {[%emt 0:00:30]} Nd6 {[%emt 0:00:19]} 55. Rh5 {[%emt 0:00:30]} d4 {[%emt 0:00:51]} 56. Re5+ {[%emt 0:00:30]} Kxf6 {[%emt 0:00:30]} 57. Rd5 {[%emt 0:00:00]} Ke6 {[%emt 0:00:22]} 58. Rxd4 {[%emt 0:00:00]} f5 {[%emt 0:00:33]} 59. Rd1 {[%emt 0:02:30]} Nc4 {[%emt 0:00:47]} 60. Ra1 {[%emt 0:03:30]} e3 {[%emt 0:01:06]} 61. Re1 {[%emt 0:00:30]} Kd5 {[%emt 0:00:23]} 62. Kxf5 {[%emt 0:00:30]} Kd4 {[%emt 0:00:05]} 63. Kf4 {[%emt 0:00:30]} Kd3 {[%emt 0:00:08]} 64. Rxe3+ {[%emt 0:00:43]} 1/2-1/2